fUST/lending_fUST_20250708
["ID","MTS","AMOUNT","RATE_DAILY","PERIOD"]
[370259966,1751927440966,-460.0,0.00019178,2]
[370259968,1751927440976,-460.0,0.00019178,2]
[370259970,1751927440986,-389.6085272,0.00019178,2]
[370259972,1751927440996,-209.14479954,0.00019178,2]
[370259974,1751927441005,-460.0,0.00019178,2]
[370259976,1751927441014,-460.0,0.00019178,2]
[370259978,1751927441023,-460.0,0.00019178,2]
[370259980,1751927441032,-460.0,0.00019178,2]
[370259982,1751927441042,-460.0,0.00019178,2]
[370259984,1751927441052,-460.0,0.00019178,2]
[370259986,1751927441062,-676.11135154,0.00019178,2]
[370259988,1751927441071,-460.0,0.00019178,2]
[370259990,1751927441080,-460.0,0.00019178,2]
[370259992,1751927441089,-460.0,0.00019178,2]
[370259994,1751927441099,-1019.88,0.00019178,2]
[370259996,1751927441108,-460.61752291,0.00019178,2]
[370259998,1751927441119,-460.0,0.00019178,2]
[370260000,1751927441128,-460.0,0.00019178,2]
[370260002,1751927441138,-460.0,0.00019178,2]
[370260004,1751927441147,-460.0,0.00019178,2]
[370260006,1751927441158,-460.0,0.00019178,2]
[370260008,1751927441167,-460.0,0.00019178,2]
[370260010,1751927441177,-460.0,0.00019178,2]
[370260012,1751927441187,-460.0,0.00019178,2]
[370260014,1751927441196,-460.0,0.00019178,2]
[370260016,1751927441206,-460.0,0.00019178,2]
[370260018,1751927441216,-222.95037423,0.00019178,2]
[370260020,1751927441225,-463.76268633,0.00019178,2]
[370260022,1751927441235,-333.48767664,0.00019178,2]
[370260024,1751927441244,-460.0,0.00019178,2]
[370260026,1751927441254,-460.0,0.00019178,2]
[370260028,1751927441263,-460.0,0.00019178,2]
[370260030,1751927441272,-460.0,0.00019178,2]
[370260032,1751927441282,-460.0,0.00019178,2]
[370260034,1751927441291,-460.0,0.00019178,2]
[370260036,1751927441301,-460.0,0.00019178,2]
[370260037,1751927441310,-460.0,0.00019178,2]
[370260039,1751927441319,-460.0,0.00019178,2]
[370260041,1751927441330,-460.0,0.00019178,2]
[370260043,1751927441339,-460.0,0.00019178,2]
[370260045,1751927441348,-460.0,0.00019178,2]
[370260047,1751927441358,-460.0,0.00019178,2]
[370260049,1751927441368,-460.0,0.00019178,2]
[370260051,1751927441378,-460.0,0.00019178,2]
[370260053,1751927441388,-460.0,0.00019178,2]
[370260055,1751927441398,-460.0,0.00019178,2]
[370260057,1751927441407,-460.0,0.00019178,2]
[370260059,1751927441417,-460.0,0.00019178,2]
[370260061,1751927441426,-460.0,0.00019178,2]
[370260063,1751927441435,-460.0,0.00019178,2]
[370260065,1751927441445,-460.0,0.00019178,2]
[370260067,1751927441454,-460.0,0.00019178,2]
[370260069,1751927441464,-460.0,0.00019178,2]
[370260071,1751927441473,-460.0,0.00019178,2]
[370260073,1751927441483,-379.70072189,0.00019178,2]
[370260075,1751927441493,-460.0,0.00019178,2]
[370260077,1751927441508,-460.0,0.00019178,2]
[370260079,1751927441518,-460.0,0.00019178,2]
[370260082,1751927441528,-302.41360354,0.00019178,2]
[370260084,1751927441537,-460.0,0.00019178,2]
[370260086,1751927441547,-460.0,0.00019178,2]
[370260088,1751927441557,-460.0,0.00019178,2]
[370260090,1751927441568,-605.34475596,0.00019178,2]
[370260092,1751927441578,-460.0,0.00019178,2]
[370260094,1751927441589,-460.0,0.00019178,2]
[370260096,1751927441599,-313.33711761,0.00019178,2]
[370260098,1751927441608,-460.0,0.00019178,2]
[370260100,1751927441617,-460.0,0.00019178,2]
[370260102,1751927441626,-460.0,0.00019178,2]
[370260104,1751927441636,-460.0,0.00019178,2]
[370260105,1751927441645,-460.0,0.00019178,2]
[370260107,1751927441655,-460.0,0.00019178,2]
[370260109,1751927441666,-460.0,0.00019178,2]
[370260112,1751927441676,-460.0,0.00019178,2]
[370260113,1751927441685,-460.0,0.00019178,2]
[370260115,1751927441695,-460.0,0.00019178,2]
[370260117,1751927441705,-460.0,0.00019178,2]
[370260120,1751927441715,-460.60328107,0.00019178,2]
[370260121,1751927441724,-460.0,0.00019178,2]
[370260124,1751927441734,-460.0,0.00019178,2]
[370260125,1751927441743,-249.69076425,0.00019178,2]
[370260128,1751927441753,-460.0,0.00019178,2]
[370260129,1751927441762,-460.0,0.00019178,2]
[370260132,1751927441771,-522.61321184,0.00019178,2]
[370260134,1751927441781,-460.0,0.00019178,2]
[370260136,1751927441790,-460.0,0.00019178,2]
[370260137,1751927441800,-460.0,0.00019178,2]
[370260140,1751927441810,-460.0,0.00019178,2]
[370260142,1751927441819,-389.76739388,0.00019178,2]
[370260143,1751927441829,-463.79832731,0.00019178,2]
[370260146,1751927441838,-460.0,0.00019178,2]
[370260147,1751927441849,-460.0,0.00019178,2]
[370260149,1751927441858,-460.0,0.00019178,2]
[370260151,1751927441868,-460.0,0.00019178,2]
[370260153,1751927441877,-460.0,0.00019178,2]
[370260156,1751927441887,-460.0,0.00019178,2]
[370260158,1751927441897,-460.0,0.00019178,2]
[370260159,1751927441907,-501.90813928,0.00019178,2]
[370260162,1751927441917,-460.0,0.00019178,2]
[370260164,1751927441926,-460.0,0.00019178,2]
[370260166,1751927441936,-460.0,0.00019178,2]
[370260168,1751927441946,-460.0,0.00019178,2]
[370260170,1751927441956,-460.0,0.00019178,2]
[370260172,1751927441965,-460.0,0.00019178,2]
[370260174,1751927441974,-460.0,0.00019178,2]
[370260176,1751927441984,-594.81,0.00019178,2]
[370260178,1751927441992,-460.0,0.00019178,2]
[370260180,1751927442002,-460.0,0.00019178,2]
[370260182,1751927442011,-460.0,0.00019178,2]
[370260184,1751927442020,-460.0,0.00019178,2]
[370260185,1751927442030,-564.71,0.00019178,2]
[370260187,1751927442041,-460.0,0.00019178,2]
[370260190,1751927442053,-460.0,0.00019178,2]
[370260192,1751927442062,-460.0,0.00019178,2]
[370260193,1751927442071,-335.53481162,0.00019178,2]
[370260195,1751927442080,-460.0,0.00019178,2]
[370260197,1751927442089,-300.09229424,0.00019178,2]
[370260199,1751927442098,-460.0,0.00019178,2]
[370260202,1751927442109,-460.0,0.00019178,2]
[370260203,1751927442120,-562.870575,0.00019178,2]
[370260205,1751927442130,-212.61409944,0.00019178,2]
[370260207,1751927442139,-460.0,0.00019178,2]
[370260208,1751927442148,-462.64147025,0.00019178,2]
[370260210,1751927442157,-460.0,0.00019178,2]
[370260212,1751927442166,-460.0,0.00019178,2]
[370260214,1751927442177,-460.0,0.00019178,2]
[370260216,1751927442186,-460.0,0.00019178,2]
[370260218,1751927442196,-460.0,0.00019178,2]
[370260220,1751927442205,-460.0,0.00019178,2]
[370260222,1751927442215,-460.0,0.00019178,2]
[370260224,1751927442225,-460.0,0.00019178,2]
[370260226,1751927442234,-460.0,0.00019178,2]
[370260228,1751927442243,-460.0,0.00019178,2]
[370260230,1751927442253,-460.0,0.00019178,2]
[370260232,1751927442263,-460.0,0.00019178,2]
[370260234,1751927442272,-500.0,0.00019178,2]
[370260236,1751927442282,-461.34532515,0.00019178,2]
[370260238,1751927442292,-460.0,0.00019178,2]
[370260239,1751927442302,-460.0,0.00019178,2]
[370260241,1751927442311,-460.0,0.00019178,2]
[370260243,1751927442321,-460.0,0.00019178,2]
[370260245,1751927442330,-460.0,0.00019178,2]
[370260247,1751927442340,-500.0,0.00019178,2]
[370260249,1751927442349,-460.0,0.00019178,2]
[370260251,1751927442358,-460.0,0.00019178,2]
[370260253,1751927442367,-460.0,0.00019178,2]
[370260255,1751927442377,-460.0,0.00019178,2]
[370260257,1751927442386,-460.0,0.00019178,2]
[370260259,1751927442396,-460.0,0.00019178,2]
[370260261,1751927442405,-460.0,0.00019178,2]
[370260263,1751927442415,-460.0,0.00019178,2]
[370260265,1751927442424,-460.0,0.00019178,2]
[370260267,1751927442434,-460.0,0.00019178,2]
[370260269,1751927442443,-460.0,0.00019178,2]
[370260271,1751927442453,-397.30654642,0.00019178,2]
[370260273,1751927442462,-653.62,0.00019178,2]
[370260275,1751927442471,-460.0,0.00019178,2]
[370260277,1751927442480,-460.0,0.00019178,2]
[370260279,1751927442490,-460.0,0.00019178,2]
[370260281,1751927442503,-460.0,0.00019178,2]
[370260283,1751927442514,-460.0,0.00019178,2]
[370260285,1751927442523,-460.0,0.00019178,2]
[370260287,1751927442532,-460.0,0.00019178,2]
[370260289,1751927442541,-460.0,0.00019178,2]
[370260291,1751927442551,-460.0,0.00019178,2]
[370260293,1751927442561,-460.0,0.00019178,2]
[370260295,1751927442570,-462.27876894,0.00019178,2]
[370260297,1751927442579,-1879.14,0.00019178,2]
[370260299,1751927442590,-460.0,0.00019178,2]
[370260301,1751927442600,-460.0,0.00019178,2]
[370260303,1751927442610,-460.0,0.00019178,2]
[370260305,1751927442621,-460.0,0.00019178,2]
[370260307,1751927442631,-613.84,0.00019178,2]
[370260309,1751927442640,-473.61,0.00019178,2]
[370260311,1751927442650,-460.0,0.00019178,2]
[370260313,1751927442660,-466.13599517,0.00019178,2]
[370260315,1751927442670,-2393.22,0.00019178,2]
[370260317,1751927442679,-460.0,0.00019178,2]
[370260320,1751927442688,-460.0,0.00019178,2]
[370260323,1751927442698,-643.07,0.00019178,2]
[370260326,1751927442707,-460.0,0.00019178,2]
[370260328,1751927442717,-460.0,0.00019178,2]
[370260331,1751927442726,-460.0,0.00019178,2]
[370260350,1751927442858,-460.0,0.00019178,2]
[370260352,1751927442868,-465.50708477,0.00019178,2]
[370260354,1751927442878,-460.0,0.00019178,2]
[370260356,1751927442888,-460.0,0.00019178,2]
[370260358,1751927442897,-3842.23,0.00019178,2]
[370260360,1751927442906,-546.86,0.00019178,2]
[370260362,1751927442915,-460.0,0.00019178,2]
[370260364,1751927442924,-4554.27,0.00019178,2]
[370260366,1751927442934,-460.0,0.00019178,2]
[370260368,1751927442943,-464.7132589,0.00019178,2]
[370260370,1751927442953,-460.0,0.00019178,2]
[370260372,1751927442962,-3996.36,0.00019178,2]
[370260375,1751927442972,-460.0,0.00019178,2]
[370260378,1751927442981,-510.27,0.00019178,2]
[370260379,1751927442990,-1328.48,0.00019178,2]
[370260380,1751927443000,-460.0,0.00019178,2]
[370260381,1751927443009,-460.0,0.00019178,2]
[370260382,1751927443018,-460.0,0.00019178,2]
[370260383,1751927443027,-460.0,0.00019178,2]
[370260384,1751927443037,-460.0,0.00019178,2]
[370260386,1751927443046,-1226.89,0.00019178,2]
[370260388,1751927443056,-460.0,0.00019178,2]
[370260390,1751927443065,-460.0,0.00019178,2]
[370260392,1751927443074,-1664.15,0.00019178,2]
[370260394,1751927443083,-460.0,0.00019178,2]
[370260395,1751927443093,-1898.36,0.00019178,2]
[370260398,1751927443103,-461.42513913,0.00019178,2]
[370260400,1751927443114,-465.32935796,0.00019178,2]
[370260402,1751927443124,-460.0,0.00019178,2]
[370260404,1751927443135,-460.0,0.00019178,2]
[370260406,1751927443145,-460.0,0.00019178,2]
[370260407,1751927443156,-604.81,0.00019178,2]
[370260409,1751927443167,-460.0,0.00019178,2]
[370260412,1751927443178,-460.0,0.00019178,2]
[370260414,1751927443188,-460.0,0.00019178,2]
[370260415,1751927443198,-528.21205149,0.00019178,2]
[370260418,1751927443208,-460.0,0.00019178,2]
[370260420,1751927443218,-460.0,0.00019178,2]
[370260421,1751927443227,-879.45,0.00019178,2]
[370260423,1751927443236,-461.84389489,0.00019178,2]
[370260425,1751927443245,-635.68,0.00019178,2]
[370260427,1751927443254,-297.02680338,0.00019178,2]
[370260429,1751927443263,-460.0,0.00019178,2]
[370260431,1751927443272,-1975.47,0.00019178,2]
[370260433,1751927443281,-584.79,0.00019178,2]
[370260435,1751927443291,-460.0,0.00019178,2]
[370260437,1751927443300,-460.0,0.00019178,2]
[370260439,1751927443309,-460.0,0.00019178,2]
[370260441,1751927443319,-460.0,0.00019178,2]
[370260443,1751927443328,-543.9,0.00019178,2]
[370260445,1751927443337,-400.21602134,0.00019178,2]
[370260447,1751927443347,-419.05928685,0.00019178,2]
[370260449,1751927443356,-460.0,0.00019178,2]
[370260451,1751927443366,-353.63911291,0.00019178,2]
[370260453,1751927443375,-460.0,0.00019178,2]
[370260455,1751927443384,-500.0,0.00019178,2]
[370260457,1751927443393,-460.0,0.00019178,2]
[370260458,1751927443403,-594.67,0.00019178,2]
[370260459,1751927443413,-460.0,0.00019178,2]
[370260460,1751927443422,-789.88,0.00019178,2]
[370260461,1751927443431,-460.0,0.00019178,2]
[370260462,1751927443441,-460.0,0.00019178,2]
[370260463,1751927443451,-460.0,0.00019178,2]
[370260464,1751927443470,-460.0,0.00019178,2]
[370260465,1751927443480,-460.0,0.00019178,2]
[370260466,1751927443489,-462.64575202,0.00019178,2]
[370260468,1751927443501,-460.0,0.00019178,2]
[370260470,1751927443510,-460.0,0.00019178,2]
[370260471,1751927443519,-461.90533442,0.00019178,2]
[370260472,1751927443528,-460.0,0.00019178,2]
[370260473,1751927443539,-460.0,0.00019178,2]
[370260474,1751927443548,-408.47567109,0.00019178,2]
[370260475,1751927443557,-460.0,0.00019178,2]
[370260476,1751927443566,-460.0,0.00019178,2]
[370260478,1751927443577,-460.0,0.00019178,2]
[370260480,1751927443586,-915.21,0.00019178,2]
[370260481,1751927443596,-389.82,0.00019178,2]
[370260483,1751927443605,-460.0,0.00019178,2]
[370260485,1751927443615,-502.60480487,0.00019178,2]
[370260486,1751927443624,-460.0,0.00019178,2]
[370260487,1751927443633,-500.0,0.00019178,2]
[370260488,1751927443642,-500.0,0.00019178,2]
[370260489,1751927443652,-500.0,0.00019178,2]
[370260490,1751927443661,-563.14,0.00019178,2]
[370260492,1751927443671,-465.78,0.00019178,2]
[370260494,1751927443680,-460.0,0.00019178,2]
[370260496,1751927443689,-460.0,0.00019178,2]
[370260498,1751927443698,-460.0,0.00019178,2]
[370260500,1751927443707,-538.62312833,0.00019178,2]
[370260502,1751927443717,-3256.25,0.00019178,2]
[370260503,1751927443726,-462.67988669,0.00019178,2]
[370260505,1751927443735,-614.18,0.00019178,2]
[370260507,1751927443744,-460.0,0.00019178,2]
[370260509,1751927443753,-460.0,0.00019178,2]
[370260511,1751927443763,-2256.97,0.00019178,2]
[370260513,1751927443774,-460.0,0.00019178,2]
[370260515,1751927443784,-211.63869696,0.00019178,2]
[370260517,1751927443793,-460.0,0.00019178,2]
[370260519,1751927443802,-550.23,0.00019178,2]
[370260521,1751927443811,-495.62,0.00019178,2]
[370260523,1751927443820,-1361.67,0.00019178,2]
[370260525,1751927443831,-460.0,0.00019178,2]
[370260527,1751927443842,-584.53,0.00019178,2]
[370260529,1751927443852,-493.23,0.00019178,2]
[370260531,1751927443863,-3765.02,0.00019178,2]
[370260533,1751927443873,-2159.42,0.00019178,2]
[370260535,1751927443882,-467.1786635,0.00019178,2]
[370260537,1751927443891,-575.16,0.00019178,2]
[370260539,1751927443900,-460.0,0.00019178,2]
[370260541,1751927443909,-846.36,0.00019178,2]
[370260543,1751927443918,-460.0,0.00019178,2]
[370260545,1751927443927,-460.0,0.00019178,2]
[370260547,1751927443937,-460.0,0.00019178,2]
[370260549,1751927443946,-461.82,0.00019178,2]
[370260551,1751927443955,-460.0,0.00019178,2]
[370260553,1751927443966,-460.0,0.00019178,2]
[370260555,1751927443976,-786.21,0.00019178,2]
[370260557,1751927443985,-501.21549238,0.00019178,2]
[370260559,1751927443994,-460.0,0.00019178,2]
[370260561,1751927444003,-2143.03,0.00019178,2]
[370260563,1751927444012,-460.0,0.00019178,2]
[370260565,1751927444021,-283.6509958,0.00019178,2]
[370260567,1751927444031,-460.0,0.00019178,2]
[370260569,1751927444040,-460.0,0.00019178,2]
[370260571,1751927444049,-503.69766383,0.00019178,2]
[370260573,1751927444058,-460.0,0.00019178,2]
[370260575,1751927444067,-460.0,0.00019178,2]
[370260577,1751927444076,-460.0,0.00019178,2]
[370260579,1751927444087,-1908.50257099,0.00019178,2]
[370260582,1751927444105,-270.12742901,0.00019178,2]
[370260584,1751927444115,-460.0,0.00019178,2]
[370260586,1751927444124,-460.81766967,0.00019178,2]
[370260588,1751927444133,-460.0,0.00019178,2]
[370260590,1751927444142,-460.0,0.00019178,2]
[370260592,1751927444152,-700.64,0.00019178,2]
[370260594,1751927444161,-462.83565828,0.00019178,2]
[370260596,1751927444170,-376.39756337,0.00019178,2]
[370260598,1751927444180,-360.28167967,0.00019178,2]
[370260623,1751927444404,-99.71832033,0.00019178,2]
[370260625,1751927444414,-1410.11317431,0.00019178,2]
[370260627,1751927444425,-4189.39682569,0.00019178,2]
[370260629,1751927444434,-460.0,0.00019178,2]
[370260630,1751927444443,-460.0,0.00019178,2]
[370260632,1751927444452,-460.0,0.00019178,2]
[370260633,1751927444461,-3618.38,0.00019178,2]
[370260634,1751927444471,-221.0583572,0.000192,2]
[370260635,1751927444480,-153.0,0.000192,2]
[370260636,1751927444489,-153.0,0.000192,2]
[370260637,1751927444502,-153.0,0.000192,2]
[370260638,1751927444511,-153.0,0.000192,2]
[370260639,1751927444521,-153.0,0.000192,2]
[370260640,1751927444531,-153.0,0.000192,2]
[370260641,1751927444540,-858.86622399,0.00019219,2]
[370260642,1751927444550,-168.0,0.00019224,2]
[370260643,1751927444559,-302.60665372,0.00019237,2]
[370260644,1751927444568,-329.93412842,0.00019259,2]
[370260646,1751927444577,-1318.41677718,0.00019259,2]
[370260648,1751927444587,-890.64427428,0.00019274,2]
[370260649,1751927444598,-5370.0,0.00019293,2]
[370260651,1751927444607,-923.59811243,0.00019329,2]
[370260654,1751927444617,-168.0,0.00019341,2]
[370260656,1751927444626,-1582.95018088,0.00019352,2]
[370260658,1751927444635,-201.7514468,0.00019352,2]
[370260660,1751927444644,-957.77124259,0.00019384,2]
[370260662,1751927444654,-302.60665372,0.00019427,2]
[370260663,1751927444664,-151.0,0.00019452,2]
[370260664,1751927444674,-151.0,0.00019452,2]
[370260666,1751927444684,-151.0,0.00019452,2]
[370260668,1751927444693,-151.0,0.00019452,2]
[370260670,1751927444702,-151.0,0.00019452,2]
[370260671,1751927444711,-151.0,0.00019452,2]
[370260673,1751927444721,-151.0,0.00019452,2]
[370260675,1751927444730,-151.0,0.00019452,2]
[370260676,1751927444739,-151.0,0.00019452,2]
[370260678,1751927444750,-460.0,0.00019452,2]
[370260679,1751927444759,-460.0,0.00019452,2]
[370260680,1751927444768,-460.0,0.00019452,2]
[370260681,1751927444778,-151.0,0.00019452,2]
[370260682,1751927444788,-352.30988619,0.00019452,2]
[370260683,1751927444797,-460.0,0.00019452,2]
[370260684,1751927444807,-151.0,0.00019452,2]
[370260685,1751927444816,-151.0,0.00019452,2]
[370260686,1751927444825,-460.0,0.00019452,2]
[370260687,1751927444834,-460.0,0.00019452,2]
[370260688,1751927444844,-460.0,0.00019452,2]
[370260689,1751927444856,-151.0,0.00019452,2]
[370260690,1751927444867,-151.0,0.00019452,2]
[370260691,1751927444880,-460.0,0.00019452,2]
[370260692,1751927444889,-460.0,0.00019452,2]
[370260693,1751927444899,-169.66107823,0.00019452,2]
[370260694,1751927444908,-151.0,0.00019452,2]
[370260695,1751927444918,-151.0,0.00019452,2]
[370260696,1751927444929,-1019.88,0.00019452,2]
[370260697,1751927444939,-151.0,0.00019452,2]
[370260698,1751927444949,-460.0,0.00019452,2]
[370260699,1751927444959,-460.0,0.00019452,2]
[370260700,1751927444971,-151.0,0.00019452,2]
[370260701,1751927444981,-151.0,0.00019452,2]
[370260702,1751927444991,-460.0,0.00019452,2]
[370260703,1751927445001,-224.085569,0.00019452,2]
[370260704,1751927445011,-224.085569,0.00019452,2]
[370260705,1751927445021,-460.0,0.00019452,2]
[370260706,1751927445033,-460.0,0.00019452,2]
[370260707,1751927445042,-236.85696148,0.00019452,2]
[370260708,1751927445051,-460.0,0.00019452,2]
[370260709,1751927445060,-151.0,0.00019452,2]
[370260710,1751927445069,-151.0,0.00019452,2]
[370260711,1751927445078,-460.0,0.00019452,2]
[370260712,1751927445088,-460.0,0.00019452,2]
[370260713,1751927445097,-460.0,0.00019452,2]
[370260714,1751927445220,-151.0,0.00019452,2]
[370260715,1751927445230,-151.0,0.00019452,2]
[370260716,1751927445239,-460.0,0.00019452,2]
[370260717,1751927445248,-460.0,0.00019452,2]
[370260718,1751927445257,-460.0,0.00019452,2]
[370260719,1751927445266,-460.0,0.00019452,2]
[370260720,1751927445276,-564.71,0.00019452,2]
[370260721,1751927445286,-151.0,0.00019452,2]
[370260722,1751927445297,-460.0,0.00019452,2]
[370260723,1751927445307,-460.0,0.00019452,2]
[370260724,1751927445317,-391.9230548,0.00019452,2]
[370260725,1751927445327,-460.0,0.00019452,2]
[370260726,1751927445337,-151.0,0.00019452,2]
[370260727,1751927445346,-460.0,0.00019452,2]
[370260728,1751927445355,-460.0,0.00019452,2]
[370260729,1751927445365,-460.0,0.00019452,2]
[370260730,1751927445375,-460.0,0.00019452,2]
[370260731,1751927445384,-460.0,0.00019452,2]
[370260732,1751927445394,-460.0,0.00019452,2]
[370260733,1751927445404,-460.0,0.00019452,2]
[370260734,1751927445414,-460.0,0.00019452,2]
[370260735,1751927445423,-196.436759,0.00019452,2]
[370260736,1751927445433,-151.0,0.00019452,2]
[370260737,1751927445442,-460.0,0.00019452,2]
[370260738,1751927445452,-196.436759,0.00019452,2]
[370260739,1751927445461,-460.0,0.00019452,2]
[370260740,1751927445471,-460.0,0.00019452,2]
[370260741,1751927445480,-460.0,0.00019452,2]
[370260742,1751927445491,-460.0,0.00019452,2]
[370260743,1751927445506,-460.0,0.00019452,2]
[370260744,1751927445516,-502.81474646,0.00019452,2]
[370260745,1751927445525,-460.0,0.00019452,2]
[370260746,1751927445535,-460.0,0.00019452,2]
[370260747,1751927445545,-460.0,0.00019452,2]
[370260748,1751927445554,-495.72651481,0.00019452,2]
[370260749,1751927445563,-549.611607,0.00019452,2]
[370260750,1751927445577,-549.611607,0.00019452,2]
[370260751,1751927445586,-313.98,0.00019452,2]
[370260752,1751927445596,-460.0,0.00019452,2]
[370260753,1751927445605,-151.0,0.00019452,2]
[370260754,1751927445614,-151.0,0.00019452,2]
[370260755,1751927445624,-460.0,0.00019452,2]
[370260756,1751927445634,-279.983321,0.00019452,2]
[370260757,1751927445643,-573.03499489,0.00019452,2]
[370260758,1751927445654,-279.983321,0.00019452,2]
[370260759,1751927445664,-653.62,0.00019452,2]
[370260760,1751927445674,-500.0,0.00019452,2]
[370260762,1751927445684,-460.0,0.00019452,2]
[370260763,1751927445695,-460.0,0.00019452,2]
[370260764,1751927445704,-460.0,0.00019452,2]
[370260765,1751927445713,-460.0,0.00019452,2]
[370260766,1751927445723,-460.0,0.00019452,2]
[370260767,1751927445733,-151.0,0.00019452,2]
[370260768,1751927445743,-151.0,0.00019452,2]
[370260769,1751927445754,-460.0,0.00019452,2]
[370260770,1751927445763,-460.0,0.00019452,2]
[370260771,1751927445772,-460.0,0.00019452,2]
[370260772,1751927445781,-151.0,0.00019452,2]
[370260773,1751927445791,-1879.14,0.00019452,2]
[370260774,1751927445800,-460.0,0.00019452,2]
[370260775,1751927445810,-460.0,0.00019452,2]
[370260776,1751927445819,-613.84,0.00019452,2]
[370260777,1751927445829,-460.0,0.00019452,2]
[370260778,1751927445839,-151.0,0.00019452,2]
[370260780,1751927445849,-151.0,0.00019452,2]
[370260782,1751927445863,-460.0,0.00019452,2]
[370260784,1751927445874,-460.0,0.00019452,2]
[370260787,1751927445883,-643.07,0.00019452,2]
[370260789,1751927445892,-460.0,0.00019452,2]
[370260790,1751927445902,-460.0,0.00019452,2]
[370260792,1751927445911,-460.0,0.00019452,2]
[370260793,1751927445921,-151.0,0.00019452,2]
[370260794,1751927445931,-151.0,0.00019452,2]
[370260796,1751927445940,-460.0,0.00019452,2]
[370260798,1751927445950,-460.0,0.00019452,2]
[370260799,1751927445959,-460.0,0.00019452,2]
[370260800,1751927445968,-3842.23,0.00019452,2]
[370260801,1751927445977,-460.0,0.00019452,2]
[370260802,1751927445987,-546.86,0.00019452,2]
[370260803,1751927445996,-4554.27,0.00019452,2]
[370260804,1751927446005,-460.0,0.00019452,2]
[370260805,1751927446014,-460.0,0.00019452,2]
[370260807,1751927446023,-3996.36,0.00019452,2]
[370260809,1751927446033,-460.0,0.00019452,2]
[370260811,1751927446042,-510.27,0.00019452,2]
[370260812,1751927446052,-1328.48,0.00019452,2]
[370260813,1751927446063,-460.0,0.00019452,2]
[370260814,1751927446072,-460.0,0.00019452,2]
[370260815,1751927446081,-485.42,0.00019452,2]
[370260816,1751927446090,-460.0,0.00019452,2]
[370260817,1751927446099,-1226.89,0.00019452,2]
[370260818,1751927446109,-460.0,0.00019452,2]
[370260819,1751927446118,-460.0,0.00019452,2]
[370260820,1751927446127,-1664.15,0.00019452,2]
[370260821,1751927446136,-460.0,0.00019452,2]
[370260822,1751927446146,-1898.36,0.00019452,2]
[370260823,1751927446156,-460.0,0.00019452,2]
[370260824,1751927446166,-151.0,0.00019452,2]
[370260825,1751927446176,-151.0,0.00019452,2]
[370260826,1751927446186,-604.81,0.00019452,2]
[370260827,1751927446196,-460.0,0.00019452,2]
[370260828,1751927446206,-460.0,0.00019452,2]
[370260829,1751927446216,-151.0,0.00019452,2]
[370260830,1751927446226,-151.0,0.00019452,2]
[370260831,1751927446237,-151.0,0.00019452,2]
[370260832,1751927446247,-151.0,0.00019452,2]
[370260833,1751927446256,-460.0,0.00019452,2]